bitfinex/quotes_ETHUSD_20251026
["timestamp","ask_amount","ask_price","bid_price","bid_amount"]
[1761483773711,1.72505819,4077.4,4076.7,2.45295511]
[1761483773908,1.72505819,4077.4,4076.8,0.83188635]
[1761483774077,1.72505819,4077.4,4076.9,0.52159509]
[1761483774273,1.72505819,4077.4,4076.8,0.31029126]
[1761483774274,1.72505819,4077.4,4077.0,0.52159509]
[1761483774531,1.72505819,4077.4,4077.1,0.52159509]
[1761483774693,1.72505819,4077.4,4077.2,0.52159509]
[1761483774886,1.72505819,4077.4,4076.8,0.31029126]
[1761483775201,1.72505819,4077.4,4076.9,0.5217828]
[1761483775390,1.72505819,4077.4,4077.0,0.5217828]
[1761483775593,1.72505819,4077.4,4077.1,0.5217828]
[1761483775792,1.72505819,4077.4,4077.2,0.5217828]
[1761483775992,1.72505819,4077.4,4077.3,0.5217828]
[1761483776490,4.30000147,4077.4,4077.3,0.5217828]
[1761483776694,4.75410147,4077.4,4077.3,0.5217828]
[1761483778021,2.30155819,4077.4,4077.3,0.5217828]
[1761483778210,1.84745819,4077.4,4077.3,0.5217828]
[1761483778379,4.30000147,4077.4,4077.3,0.5217828]
[1761483778717,4.75410147,4077.4,4077.3,0.5217828]
[1761483780616,4.75410147,4077.4,4077.3,7e-08]
[1761483781648,2.45280092,4077.0,4076.4,0.6499575]
[1761483781804,2.45308444,4076.6,4076.4,0.6499575]
[1761483782008,0.1224,4076.5,4076.3,0.6499575]
[1761483782843,0.1224,4076.5,4076.1,0.002]
[1761483783009,0.1224,4076.2,4076.1,0.002]
[1761483783417,2.19765819,4077.4,4076.1,0.4461]
[1761483783661,0.71440582,4077.3,4076.1,0.4461]
[1761483783805,2.45314271,4076.5,4076.1,0.002]
[1761483784006,2.45315749,4076.4,4076.1,0.002]
[1761483784240,2.45302577,4076.6,4076.1,0.002]
[1761483784241,2.45321769,4076.3,4076.1,0.002]
[1761483784736,2.45315459,4076.4,4076.1,0.002]
[1761483785933,2.45321997,4076.3,4076.1,0.002]
[1761483786133,0.4726,4076.5,4076.1,0.002]
[1761483786342,2.45316482,4076.4,4076.1,0.002]
[1761483786642,2.45322142,4076.3,4076.1,0.002]
[1761483787309,2.45326529,4076.2,4076.1,0.002]
[1761483788211,0.4726,4076.4,4076.1,0.002]
[1761483788434,0.4726,4076.3,4076.1,0.002]
[1761483788772,2.45326529,4076.2,4076.1,0.002]
[1761483789242,2.90346529,4076.2,4076.1,0.002]
[1761483790163,6.12646529,4076.2,4076.1,0.002]
[1761483790541,8.18854529,4076.2,4076.1,0.002]
[1761483790742,9.25271684,4076.2,4076.1,0.002]
[1761483791052,4.74774625,4075.7,4075.6,1e-08]
[1761483791255,7.97074625,4075.7,4075.6,1e-08]
[1761483791456,8.42094625,4075.7,4075.6,1e-08]
[1761483791663,9.50838951,4075.7,4075.6,1e-08]
[1761483792153,0.2321,4076.1,4075.6,1e-08]
[1761483792330,2.45356625,4075.7,4075.6,1e-08]
[1761483793067,2.90376625,4075.7,4075.6,1e-08]
[1761483793235,2.45356625,4075.7,4075.6,1e-08]
[1761483793437,2.57596625,4075.7,4075.6,1e-08]
[1761483794268,0.1224,4075.7,4075.6,1e-08]
[1761483794443,0.1224,4075.7,4075.6,0.46880001]
[1761483794656,2.45302551,4076.6,4075.7,2.45356625]
[1761483794981,0.1224,4076.0,4075.8,0.52079228]
[1761483795184,2.93027794,4077.4,4076.0,1.5552]
[1761483795352,0.1224,4076.5,4076.3,2.45319333]
[1761483795533,0.1224,4076.5,4076.4,2.45314493]
[1761483795737,0.1224,4076.5,4076.4,4.00834493]
[1761483795951,0.1224,4076.5,4076.4,0.98939986]
[1761483796682,0.1224,4076.5,4076.4,0.52059986]
[1761483797405,0.5726,4076.5,4075.9,0.1224]
[1761483797605,3.6732,4076.5,4075.6,1e-08]
[1761483797754,2.45356625,4075.7,4075.6,1e-08]
[1761483798462,2.90376625,4075.7,4075.6,1e-08]
[1761483798949,3.41064625,4075.7,4075.6,1e-08]
[1761483799952,4.96584625,4075.7,4075.6,1e-08]
[1761483802365,8.18784625,4075.7,4075.6,1e-08]
[1761483802567,3.51769919,4075.7,4075.6,1e-08]
[1761483802887,6.12576625,4075.7,4075.6,1e-08]
[1761483803051,7.68096625,4075.7,4075.6,1e-08]
[1761483803251,8.18784625,4075.7,4075.6,1e-08]
[1761483803668,8.84464304,4075.7,4075.6,1e-08]
[1761483804373,8.18784625,4075.7,4075.6,1e-08]
[1761483804567,9.31765887,4075.7,4075.6,1e-08]
[1761483805011,2.96116886,4074.5,4074.4,0.002]
[1761483805310,2.96134958,4074.2,4074.1,1e-08]
[1761483805514,2.96147008,4074.0,4073.9,1e-08]
[1761483805719,2.06208,4073.9,4071.7,0.38422145]
[1761483806003,2.06208,4073.9,4071.0,0.1583]
[1761483806004,2.68753387,4072.6,4071.4,0.4688]
[1761483806217,5.90953387,4072.6,4071.4,0.4688]
[1761483806397,7.24691021,4072.6,4071.1,0.4688]
[1761483807495,7.36931021,4072.6,4071.1,0.4688]
[1761483808006,9.43139021,4072.6,4071.0,0.1583]
[1761483808371,9.43139021,4072.6,4070.8,0.002]
[1761483808771,2.45645925,4070.9,4070.8,0.002]
[1761483810799,3.41353925,4070.9,4070.8,0.002]
[1761483811012,4.34594053,4070.9,4070.8,0.002]
[1761483812215,9.12314053,4070.9,4070.8,0.002]
[1761483813929,2.96388245,4070.0,4069.9,0.002]
[1761483814134,8.19228245,4070.0,4069.9,0.002]
[1761483815542,4.96928245,4070.0,4069.9,0.002]
[1761483815742,0.93240128,4070.9,4069.9,0.002]
[1761483815903,3.223,4070.6,4069.9,0.002]
[1761483816545,2.4569843,4070.1,4069.9,0.002]
[1761483816704,0.4502,4070.8,4069.9,0.002]
[1761483816903,3.223,4070.7,4069.9,0.002]
[1761483817127,1.5552,4071.1,4069.9,0.002]
[1761483817298,3.223,4071.0,4069.9,0.002]
[1761483817506,2.45681618,4070.4,4069.9,0.002]
[1761483817829,2.0054,4071.1,4069.9,0.002]
[1761483817987,2.4565775,4070.8,4069.9,0.4708]
[1761483818187,2.4565775,4070.8,4069.9,0.76359607]
[1761483818415,3.223,4071.0,4069.9,0.002]
[1761483818742,0.1232,4070.0,4069.9,0.002]
[1761483819673,2.58020245,4070.0,4069.9,0.002]
[1761483820351,0.1232,4070.0,4069.9,0.002]
[1761483820647,5.80320245,4070.0,4069.9,0.002]
[1761483820950,6.3835227,4070.0,4069.9,0.002]
[1761483821948,6.8557227,4070.0,4069.9,0.002]
[1761483822643,6.3835227,4070.0,4069.9,0.002]
[1761483823047,0.1232,4070.0,4069.9,0.002]
[1761483823247,2.58020245,4070.0,4069.9,0.002]
[1761483824157,0.1232,4070.0,4069.9,0.002]
[1761483824359,2.58020245,4070.0,4069.9,0.002]
[1761483824561,0.1232,4070.0,4069.9,0.002]
[1761483825540,0.1232,4070.0,4069.9,0.464]
[1761483825740,0.1232,4070.0,4069.9,2.92106282]
[1761483825971,0.1232,4070.0,4069.9,3.45889347]
[1761483826276,3.223,4071.6,4069.9,3.45889347]
[1761483826277,1.86752654,4074.3,4070.0,1.472]
[1761483826571,2.45555759,4072.4,4070.4,2.456761]
[1761483826738,0.24555576,4072.3,4070.5,0.6761241]
[1761483826940,1.577,4072.8,4070.6,0.50688]
[1761483827139,0.4722,4073.5,4070.7,0.37976579]
[1761483827339,2.45507217,4073.2,4071.2,2.45622574]
[1761483827563,2.45572558,4072.2,4071.2,2.45624974]
[1761483827740,2.45572558,4072.2,4071.3,1.7328]
[1761483827942,2.45574581,4072.1,4071.3,0.1776]
[1761483828142,2.45566559,4072.3,4071.3,0.1776]
[1761483828342,0.2343,4072.5,4071.4,2.8113465]
[1761483828343,2.45569198,4072.2,4071.4,2.8113465]
[1761483828542,2.4557389,4072.1,4071.4,0.3552]
[1761483828739,2.45585998,4071.9,4071.3,0.1776]
[1761483829076,2.45580154,4072.0,4071.4,0.3552]
[1761483829276,0.7065,4073.8,4071.4,0.37976157]
[1761483829462,2.45518176,4073.1,4072.1,2.45572786]
[1761483829651,0.49101942,4073.1,4071.9,2.45584796]
[1761483829978,2.4552065,4073.0,4072.1,2.45572292]
[1761483830346,0.4722,4073.6,4072.2,2.45567276]
[1761483830548,2.45495914,4073.4,4072.3,1.5552]
[1761483830847,2.45531962,4072.8,4071.6,0.3552]
[1761483831064,0.97908,4073.5,4071.6,0.3552]
[1761483831253,0.420108,4073.4,4071.7,1.5552]
[1761483831454,2.45541511,4072.7,4071.6,0.3552]
[1761483831675,2.45543012,4072.7,4071.6,0.3552]
[1761483832076,2.45543012,4072.7,4071.9,2.45585032]
[1761483832284,0.2343,4072.9,4071.8,2.45590503]
[1761483832482,0.892308,4073.4,4071.9,1.9104]
[1761483832651,1.179807,4073.3,4071.9,1.9104]
[1761483832847,2.45507217,4073.2,4071.9,0.3552]
[1761483833055,2.45532705,4072.8,4071.9,0.3552]
[1761483833675,2.45537389,4072.7,4071.8,2.45589168]
[1761483833998,2.45531329,4072.8,4071.8,2.45589168]
[1761483834554,0.707607,4073.3,4071.9,0.3552]
[1761483834783,2.45531243,4072.9,4072.0,2.45573947]
[1761483835090,2.45531243,4072.9,4072.1,0.37975735]
[1761483835293,2.45531243,4072.9,4072.1,2.83548217]
[1761483835479,2.45523626,4073.0,4072.2,2.45567506]
[1761483835796,2.68907071,4073.8,4072.3,2.45561476]
[1761483835797,3.222,4073.6,4072.3,2.45561476]
[1761483835953,2.45513392,4073.1,4072.3,2.81081476]
[1761483836155,2.45506413,4073.3,4072.4,0.02455554]
[1761483836361,0.50688,4072.2,4070.5,0.6499575]
[1761483836555,0.2343,4072.3,4069.9,0.002]
[1761483836556,0.2343,4070.6,4069.9,0.002]
[1761483837050,2.45695176,4070.1,4069.9,0.002]
[1761483837255,2.45700245,4070.0,4069.9,0.002]
[1761483837886,0.2343,4071.1,4069.9,0.002]
[1761483838056,2.45700245,4070.0,4069.9,0.002]
[1761483840191,3.42069258,4070.0,4069.9,0.002]
[1761483840364,7.15557258,4070.0,4069.9,0.002]
[1761483840565,2.94849258,4070.0,4069.9,0.002]
[1761483840790,2.45700245,4070.0,4069.9,0.002]
[1761483841505,0.001,4070.3,4069.9,0.002]
[1761483841705,2.45700245,4070.0,4069.9,0.002]
[1761483842272,2.45688172,4070.2,4069.9,0.002]
[1761483842479,0.001,4070.3,4070.2,0.1776]
[1761483843206,0.001,4070.3,4070.2,0.5328]
[1761483843692,0.001,4070.3,4070.2,4.84406702]
[1761483844080,0.001,4070.3,4070.2,2.3871853]
[1761483844285,0.001,4070.3,4070.2,4.84406702]
[1761483845094,0.001,4070.3,4070.2,2.088]
[1761483845302,0.001,4070.3,4070.2,1.7328]
[1761483845706,0.001,4070.3,4070.2,2.088]
[1761483846799,0.001,4070.3,4070.2,2.2112]
[1761483847115,0.001,4070.3,4070.2,2.088]
[1761483847409,0.001,4070.3,4070.2,2.54270551]
[1761483847707,0.001,4070.3,4070.2,4.54488172]
[1761483847909,0.001,4070.3,4070.2,4.56945053]
[1761483848279,0.001,4070.3,4070.2,4.54488172]
[1761483849195,0.001,4070.3,4070.2,4.56945053]
[1761483849517,0.001,4070.3,4070.2,5.07633053]
[1761483849823,0.001,4070.3,4070.2,5.87028703]
[1761483850719,0.001,4070.3,4070.2,6.74039833]
[1761483850923,0.001,4070.3,4070.2,5.87028703]
[1761483851696,0.001,4070.3,4070.2,6.01606542]
[1761483852020,0.001,4070.3,4070.2,5.36340703]
[1761483852522,0.001,4070.3,4070.2,6.52294542]
[1761483852836,0.001,4070.3,4070.2,5.87028703]
[1761483854797,0.001,4070.3,4070.2,5.36340703]
[1761483856145,0.001,4070.3,4070.2,1.7328]
[1761483856347,0.001,4070.3,4070.2,4.18968172]
[1761483856646,0.001,4070.3,4069.9,0.002]
[1761483857141,0.1242,4070.3,4069.9,0.3572]
[1761483857938,2.58102349,4070.3,4069.9,0.002]
[1761483858142,0.1242,4070.3,4069.9,0.002]
[1761483859554,0.1242,4070.3,4070.0,0.3552]
[1761483859843,0.1242,4070.3,4070.0,2.45699775]
[1761483860056,0.1242,4070.3,4069.9,2.7172799]
[1761483860658,0.1242,4070.3,4069.7,0.120787]
[1761483861020,0.001,4070.3,4070.1,2.45689597]
[1761483861219,0.001,4070.3,4070.2,4.01208172]
[1761483861434,0.001,4070.3,4070.2,4.89873053]
[1761483861639,0.001,4070.3,4070.2,6.81148239]
[1761483862711,0.001,4070.3,4070.2,5.43546379]
[1761483862912,0.001,4070.3,4070.2,5.02094666]
[1761483863222,0.001,4070.3,4070.2,5.02086793]
[1761483863633,0.001,4070.3,4070.2,5.55231674]
[1761483863945,0.001,4070.3,4070.2,4.87416172]
[1761483866334,0.001,4070.3,4070.2,4.36728172]
[1761483866529,0.001,4070.3,4070.2,5.13684619]
[1761483866748,0.001,4070.3,4070.2,4.78164619]
[1761483867134,0.001,4070.3,4070.2,2.32476447]
[1761483867333,0.001,4070.3,4070.2,1.5552]
[1761483867529,0.001,4070.3,4070.0,2.45699329]
[1761483867734,0.001,4070.3,4069.9,0.65461066]
[1761483868066,0.001,4070.3,4070.2,2.45688172]
[1761483868488,0.001,4070.3,4070.2,4.01208172]
[1761483868770,0.001,4070.3,4070.2,5.91434829]
[1761483868934,0.001,4070.3,4070.2,5.88977948]
[1761483869272,0.001,4070.3,4070.2,5.74204882]
[1761483870066,0.001,4070.3,4070.2,6.10849795]
[1761483870432,1.001,4070.3,4070.2,5.75329795]
[1761483870637,1.001,4070.3,4070.2,4.01208172]
[1761483871269,1.001,4070.3,4070.2,4.79039674]
[1761483871770,1.001,4070.3,4070.2,4.49048172]
[1761483872786,1.001,4070.3,4070.2,5.02193053]
[1761483872994,1.001,4070.3,4070.2,4.99736172]
[1761483873171,1.001,4070.3,4070.2,5.76735576]
[1761483874373,1.001,4070.3,4070.2,4.51896172]
[1761483874580,1.001,4070.3,4070.2,3.3310636]
[1761483875013,1.001,4070.3,4070.2,5.2414636]
[1761483875306,1.001,4070.3,4070.2,4.01208172]
[1761483875488,1.001,4070.3,4070.2,4.8864255]
[1761483875673,1.001,4070.3,4070.2,4.01208172]
[1761483875866,1.001,4070.3,4070.2,4.8864255]
[1761483876610,1.001,4070.3,4070.1,0.87434378]
[1761483876792,1.001,4070.3,4070.0,3.11294196]
[1761483876968,1.001,4070.3,4070.1,1.5552]
[1761483878631,1.4465,4070.3,4070.0,0.65596614]
[1761483879117,1.001,4070.3,4070.2,2.45688172]
[1761483880509,1.001,4070.3,4070.2,3.32254576]
[1761483880691,1.001,4070.3,4070.2,4.19688954]
[1761483881288,1.001,4070.3,4070.2,3.32254576]
[1761483883129,1.001,4070.3,4070.2,3.67774576]
[1761483883303,1.001,4070.3,4070.2,3.32254576]
[1761483884420,1.001,4070.3,4070.2,3.44574576]
[1761483886550,1.001,4070.3,4070.2,3.80094576]
[1761483886754,1.001,4070.3,4070.2,5.88759457]
[1761483886955,1.001,4070.3,4070.2,5.86302576]
[1761483887567,0.001,4070.8,4070.7,2.45657994]
[1761483887749,0.001,4070.8,4070.7,3.58182382]
[1761483888127,0.001,4070.8,4070.7,3.60638961]
[1761483888556,0.001,4070.8,4070.7,3.22662382]
[1761483889560,0.4465,4070.8,4070.5,0.65557203]
[1761483889884,0.4465,4070.8,4070.3,0.65557203]
[1761483890457,0.4465,4070.8,4070.2,3.11244567]
[1761483890671,0.4465,4070.8,4070.3,0.65557203]
[1761483890855,0.4465,4070.8,4070.4,1.5552]
[1761483891023,0.4465,4070.8,4070.4,2.45675006]
[1761483891757,0.4465,4070.8,4070.5,2.45670036]
[1761483891960,0.001,4070.8,4070.6,2.45663972]
[1761483892257,0.001,4070.8,4070.4,2.21077203]
[1761483892459,0.4465,4070.8,4070.5,2.45665793]
[1761483892634,0.4465,4070.8,4070.5,2.45667233]
[1761483893139,0.001,4070.8,4070.7,4.01177994]
[1761483893943,0.001,4070.8,4070.7,4.66750696]
[1761483894368,0.4465,4070.8,4070.7,4.01177994]
[1761483894759,0.001,4070.8,4070.7,4.01177994]
[1761483894960,0.001,4070.8,4070.7,4.66750696]
[1761483895157,0.4465,4070.8,4070.5,0.65572702]
[1761483895356,0.4465,4070.8,4070.6,0.0245664]
[1761483895357,0.001,4070.8,4070.6,0.0245664]
[1761483895548,0.001,4070.8,4070.5,3.11238109]
[1761483895982,0.001,4070.8,4070.7,2.45657994]
[1761483898084,0.001,4070.8,4070.7,4.66750696]
[1761483898253,0.001,4070.8,4070.7,4.01177994]
[1761483899459,0.001,4070.8,4070.7,4.13497994]
[1761483900583,0.001,4070.8,4070.7,5.00898864]
[1761483900891,0.001,4070.8,4070.7,5.94232871]
[1761483902500,0.001,4070.8,4070.7,6.29752871]
[1761483902681,0.001,4070.8,4070.7,6.73431957]
[1761483903154,0.001,4070.8,4070.7,5.42352001]
[1761483903458,0.001,4070.8,4070.7,6.73431957]
[1761483903856,0.001,4070.8,4070.7,5.42352001]
[1761483904166,0.001,4070.8,4070.7,6.37863013]
[1761483906690,0.001,4070.8,4070.7,5.06832001]
[1761483906891,0.001,4070.8,4070.7,6.37863013]
[1761483908254,0.001,4070.8,4070.7,5.06832001]
[1761483908789,0.001,4070.8,4070.7,6.37863013]
[1761483908974,0.001,4070.8,4070.7,6.73383013]
[1761483909302,0.001,4070.8,4070.7,6.37863013]
[1761483909919,0.4637,4070.8,4070.7,5.06832001]
[1761483910132,0.4637,4070.8,4070.7,2.55131293]
[1761483910295,0.4637,4070.8,4070.7,2.57977994]
[1761483910611,0.4637,4070.8,4070.7,4.13497994]
[1761483910811,0.4637,4070.8,4070.7,5.14402573]
[1761483910812,0.001,4070.8,4070.7,5.14402573]
[1761483911132,0.001,4070.8,4070.7,6.58742056]
[1761483911486,0.001,4070.8,4070.5,2.45668177]
[1761483911487,0.4637,4070.8,4070.6,2.45663856]
[1761483911822,0.4637,4070.8,4070.7,2.45657994]
[1761483913320,0.001,4070.8,4070.7,2.48114573]
[1761483916024,0.001,4070.8,4070.6,2.45662664]
[1761483916025,0.4637,4070.8,4070.6,2.45662664]
[1761483916436,0.4637,4070.8,4070.7,2.45657994]
[1761483916831,0.4637,4070.8,4070.4,0.65468822]
[1761483917139,0.4637,4070.8,4070.3,0.002]
[1761483917522,2.456761,4070.4,4070.3,0.002]
[1761483917830,2.7024371,4070.4,4070.3,0.002]
[1761483918141,3.1651371,4070.4,4070.3,0.002]
[1761483920954,3.2883371,4070.4,4070.3,0.002]
[1761483921244,0.8315761,4070.4,4070.3,0.002]
[1761483921421,3.042661,4070.4,4070.3,0.002]
[1761483924158,3.549541,4070.4,4070.3,0.002]
[1761483925258,4.981541,4070.4,4070.3,0.002]
[1761483926555,4.982541,4070.4,4070.3,0.002]
[1761483927035,7.563541,4070.4,4070.3,0.002]
[1761483927362,9.20655928,4070.4,4070.3,0.002]
[1761483928839,5.98455928,4070.4,4070.3,0.002]
[1761483929069,9.20655928,4070.4,4070.3,0.002]
[1761483932265,5.98455928,4070.4,4070.3,0.002]
[1761483932569,9.20655928,4070.4,4070.3,0.002]
[1761483933427,5.98455928,4070.4,4070.3,0.002]
[1761483933634,9.20655928,4070.4,4070.3,0.002]
[1761483934242,5.98455928,4070.4,4070.3,0.002]
[1761483934433,9.20655928,4070.4,4070.3,0.002]
[1761483934634,5.98455928,4070.4,4070.3,0.002]
[1761483934879,9.20655928,4070.4,4070.3,0.002]
[1761483935036,4.42935928,4070.4,4070.3,0.002]
[1761483935236,7.26767928,4070.4,4070.3,0.002]
[1761483936446,4.04567928,4070.4,4070.3,0.002]
[1761483936644,7.26767928,4070.4,4070.3,0.002]
[1761483937034,4.04567928,4070.4,4070.3,0.002]
[1761483938270,6.80497928,4070.4,4070.3,0.002]
[1761483938566,0.001,4070.4,4070.3,0.002]
[1761483938765,0.1242,4070.4,4070.3,2.81402136]
[1761483939079,0.001,4070.4,4070.3,4.36922136]
[1761483939366,0.001,4070.4,4070.3,2.81402136]
[1761483940734,2.457761,4070.4,4070.3,0.002]
[1761483940938,0.4577,4070.4,4070.3,0.002]
[1761483941159,0.001,4070.4,4070.3,0.002]
[1761483941361,0.001,4070.4,4070.3,0.24789598]
[1761483942499,0.001,4070.4,4070.3,0.002]
[1761483943600,0.001,4070.4,4070.3,2.45882136]
[1761483943760,0.001,4070.4,4070.3,1.58176821]
[1761483943965,0.001,4070.4,4070.3,0.002]
[1761483944164,2.914461,4070.4,4070.3,0.002]
[1761483944466,0.001,4070.4,4070.3,0.002]
[1761483945000,2.457761,4070.4,4070.3,0.002]
[1761483945364,2.914461,4070.4,4070.3,0.002]
[1761483945994,3.4515714,4070.4,4070.3,0.002]
[1761483947261,2.914461,4070.4,4070.3,0.002]
[1761483948072,2.457761,4070.4,4070.3,0.002]
[1761483948477,2.914461,4070.4,4070.3,0.002]
[1761483948907,3.037661,4070.4,4070.3,0.002]
[1761483950280,0.1242,4070.4,4070.3,0.002]
[1761483951108,2.580961,4070.4,4070.3,0.002]
[1761483951312,3.037661,4070.4,4070.3,0.002]
[1761483952784,0.1242,4070.4,4070.3,0.002]
[1761483954217,2.580961,4070.4,4070.3,0.002]
[1761483954383,3.037661,4070.4,4070.3,0.002]
[1761483955107,0.5809,4070.4,4070.3,0.002]
[1761483955311,0.1242,4070.4,4070.3,0.002]
[1761483958222,0.1242,4070.4,4070.3,0.60309914]
[1761483959027,0.1242,4070.4,4070.3,4.6151205]
[1761483959326,0.001,4070.4,4070.3,4.6151205]
[1761483960326,0.001,4070.4,4070.3,2.15829914]
[1761483960713,0.001,4070.4,4070.3,4.6151205]
[1761483961101,0.001,4070.4,4070.3,4.2599205]
[1761483962433,0.001,4070.4,4070.3,1.80309914]
[1761483962599,0.001,4070.4,4070.3,4.2599205]
[1761483962794,0.001,4070.4,4070.3,1.80309914]
[1761483963003,0.001,4070.4,4070.3,1.5572]
[1761483963533,0.4528,4070.4,4070.3,0.002]
[1761483963916,0.001,4070.4,4070.3,0.002]
[1761483966825,0.4528,4070.4,4070.3,0.002]
[1761483967334,2.909561,4070.4,4070.3,0.002]
[1761483967535,3.2128371,4070.4,4070.3,0.002]
[1761483968714,3.7197171,4070.4,4070.3,0.002]
[1761483969034,3.2128371,4070.4,4070.3,0.002]
[1761483969452,3.7197171,4070.4,4070.3,0.002]
[1761483969653,5.2749171,4070.4,4070.3,0.002]
[1761483969855,5.93572846,4070.4,4070.3,0.002]
[1761483970336,5.2749171,4070.4,4070.3,0.002]
[1761483973263,4.7680371,4070.4,4070.3,0.002]
[1761483973461,5.2749171,4070.4,4070.3,0.002]
[1761483974562,2.96394282,4069.9,4069.8,1e-08]
[1761483974743,8.3846371,4069.9,4069.8,1e-08]
[1761483975073,8.8324371,4069.9,4069.8,1e-08]
[1761483975835,5.6134371,4069.9,4069.8,1e-08]
[1761483976031,8.8324371,4069.9,4069.8,1e-08]
[1761483976532,8.7092371,4069.9,4069.8,1e-08]
[1761483976731,5.4902371,4069.9,4069.8,1e-08]
[1761483977158,8.7092371,4069.9,4069.8,1e-08]
[1761483977924,5.4902371,4069.9,4069.8,1e-08]
[1761483978129,7.1540371,4069.9,4069.8,1e-08]
[1761483978867,3.9350371,4069.9,4069.8,1e-08]
[1761483979029,7.1540371,4069.9,4069.8,1e-08]
[1761483980289,3.4872371,4069.9,4069.8,1e-08]
[1761483980585,2.45706282,4069.9,4069.8,1e-08]
[1761483980746,3.13176282,4069.9,4069.8,1e-08]
[1761483981372,2.68396282,4069.9,4069.8,1e-08]
[1761483981550,3.63864282,4069.9,4069.8,1e-08]
[1761483982050,5.19384282,4069.9,4069.8,1e-08]
[1761483982278,6.28072526,4069.9,4069.8,1e-08]
[1761483982453,9.49872526,4069.9,4069.8,1e-08]
[1761483985557,6.28072526,4069.9,4069.8,1e-08]
[1761483985769,9.49872526,4069.9,4069.8,1e-08]
[1761483986685,9.62192526,4069.9,4069.8,1e-08]
[1761483987298,8.94722526,4069.9,4069.8,1e-08]
[1761483987892,9.62192526,4069.9,4069.8,1e-08]
[1761483988872,9.17412526,4069.9,4069.8,1e-08]
[1761483989198,2.58026282,4069.9,4069.8,1e-08]
[1761483989484,5.79826282,4069.9,4069.8,1e-08]
[1761483989800,6.34976282,4069.9,4069.8,1e-08]
[1761483991157,5.90196282,4069.9,4069.8,1e-08]
[1761483991759,5.67506282,4069.9,4069.8,1e-08]
[1761483992168,7.26682726,4069.9,4069.8,1e-08]
[1761483992368,9.26982726,4069.9,4069.8,1e-08]
[1761483993287,9.27082726,4069.9,4069.8,1e-08]
[1761483996076,0.50688,4069.1,4067.4,0.65468822]
[1761483996275,6.18148629,4069.0,4067.4,0.3552]
[1761483996501,7.49318951,4069.0,4067.4,0.3552]
[1761483996686,7.49318951,4069.0,4067.6,0.3552]
[1761483997699,7.49318951,4069.0,4067.3,0.3552]
[1761483997895,7.49318951,4069.0,4067.6,0.3552]
[1761483998302,9.04838951,4069.0,4067.6,0.3552]
[1761483998482,9.70919278,4069.0,4067.6,0.3552]
[1761483999104,9.04838951,4069.0,4067.6,0.3552]
[1761483999604,9.17158951,4069.0,4067.6,0.3552]
[1761484002066,9.17158951,4069.0,4067.0,2.63640039]
[1761484002067,8.59958951,4069.0,4067.0,0.1776]
[1761484002312,3.82838951,4069.0,4068.2,0.3552]
[1761484002515,7.04438951,4069.0,4068.2,0.3552]
[1761484003303,7.04438951,4069.0,4067.3,2.45860542]
[1761484003509,7.04438951,4069.0,4067.6,0.3552]
[1761484003804,7.51228951,4069.0,4067.6,0.3552]
[1761484003997,7.51228951,4069.0,4067.9,0.3552]
[1761484005798,9.06748951,4069.0,4067.5,0.3552]
[1761484006000,9.06748951,4069.0,4067.9,0.3552]
[1761484008128,8.59858951,4069.0,4068.2,0.3552]
[1761484009190,5.67260629,4069.0,4068.5,0.3552]
[1761484009495,5.67260629,4069.0,4068.2,0.3552]
[1761484009710,6.64738629,4069.0,4067.9,0.3552]
[1761484010131,6.64738629,4069.0,4068.4,0.002]
[1761484010333,2.96448629,4069.0,4068.4,0.002]
[1761484010544,5.67260629,4069.0,4068.4,0.002]
[1761484010729,5.67260629,4069.0,4068.5,0.3552]
[1761484010898,5.67260629,4069.0,4068.4,0.002]
[1761484012012,3.08768629,4069.0,4068.4,0.002]
[1761484012224,6.30268629,4069.0,4068.4,0.002]
[1761484012437,7.17870951,4069.0,4068.4,0.002]
[1761484013104,6.67182951,4069.0,4068.4,0.002]
[1761484013640,5.79580629,4069.0,4068.4,0.002]
[1761484013852,2.58080629,4069.0,4068.4,0.002]
[1761484014026,0.1232,4069.0,4068.9,0.3572]
[1761484016125,0.1232,4069.0,4068.9,0.002]
[1761484016329,0.1232,4069.0,4068.9,0.3572]
[1761484018341,0.1232,4069.0,4068.9,0.002]
[1761484018650,2.58080629,4069.0,4068.9,0.002]
[1761484018833,0.1232,4069.0,4068.9,0.002]
[1761484019148,2.58080629,4069.0,4068.9,0.3572]
[1761484019815,2.58080629,4069.0,4068.9,0.002]
[1761484020230,0.1232,4069.0,4068.9,0.002]
[1761484020433,2.58080629,4069.0,4068.9,0.002]
[1761484020948,3.08463602,4069.0,4068.9,0.002]
[1761484023107,6.29763602,4069.0,4068.9,0.002]
[1761484023511,6.73183602,4069.0,4068.9,0.002]
[1761484024415,7.23871602,4069.0,4068.9,0.002]
[1761484025660,3.08463602,4069.0,4068.9,0.002]
[1761484026259,6.29663602,4069.0,4068.9,0.002]
[1761484026847,6.73083602,4069.0,4068.9,0.002]
[1761484027624,6.29663602,4069.0,4068.9,0.002]
[1761484028039,6.29763602,4069.0,4068.9,0.002]
[1761484032365,6.72573602,4069.0,4068.9,0.002]
[1761484033234,6.29763602,4069.0,4068.9,0.002]
[1761484033662,3.08563602,4069.0,4068.9,0.002]
[1761484033867,6.29663602,4069.0,4068.9,0.002]
[1761484036149,3.08563602,4069.0,4068.9,0.002]
[1761484036336,6.29563602,4069.0,4068.9,0.002]
[1761484037384,0.001,4069.0,4068.9,0.002]
[1761484037550,0.001,4069.0,4068.9,0.3572]
[1761484037742,2.45860629,4069.0,4068.9,0.002]
[1761484039449,2.88670629,4069.0,4068.9,0.002]
[1761484040775,3.39358629,4069.0,4068.9,0.002]